fUSD/lending_fUSD_20240212
["ID","MTS","AMOUNT","RATE_DAILY","PERIOD"]
[313874017,1707760292452,-633.84709136,0.00034794,2]
[313874018,1707760292462,-500.0,0.00034794,2]
[313874019,1707760292472,-805.75,0.00034794,2]
[313874020,1707760292482,-500.0,0.00034794,2]
[313874021,1707760292493,-500.0,0.00034794,2]
[313874022,1707760292503,-500.0,0.00034794,2]
[313874023,1707760292514,-500.0,0.00034794,2]
[313874024,1707760292524,-500.0,0.00034794,2]
[313874025,1707760292535,-500.0,0.00034794,2]
[313874026,1707760292545,-500.0,0.00034794,2]
[313874027,1707760292556,-500.0,0.00034794,2]
[313874028,1707760292565,-500.0,0.00034794,2]
[313874029,1707760292576,-500.0,0.00034794,2]
[313874030,1707760292587,-500.0,0.00034794,2]
[313874031,1707760292598,-500.0,0.00034794,2]
[313874032,1707760292611,-500.0,0.00034794,2]
[313874033,1707760292621,-500.0,0.00034794,2]
[313874034,1707760292632,-500.0,0.00034794,2]
[313874035,1707760292642,-500.0,0.00034794,7]
[313874036,1707760292652,-500.0,0.00034794,2]
[313874037,1707760292663,-500.0,0.00034794,2]
[313874038,1707760292673,-500.0,0.00034794,2]
[313874039,1707760292683,-500.0,0.00034794,2]
[313874040,1707760292693,-500.0,0.00034794,2]
[313874041,1707760292704,-500.0,0.00034794,2]
[313874042,1707760292713,-500.0,0.00034794,2]
[313874043,1707760292723,-500.0,0.00034794,2]
[313874044,1707760292733,-240.68956039,0.00034794,2]
[313874045,1707760292743,-500.0,0.00034794,2]
[313874046,1707760292753,-500.0,0.00034794,2]
[313874047,1707760292763,-500.0,0.00034794,2]
[313874048,1707760292773,-500.0,0.00034794,2]
[313874049,1707760292783,-500.0,0.00034794,2]
[313874050,1707760292793,-500.0,0.00034794,2]
[313874051,1707760292803,-500.0,0.00034794,2]
[313874052,1707760292813,-500.0,0.00034794,2]
[313874053,1707760292823,-500.0,0.00034794,2]
[313874054,1707760292834,-500.0,0.00034794,2]
[313874055,1707760292844,-500.0,0.00034794,2]
[313874056,1707760292857,-500.0,0.00034794,2]
[313874057,1707760292867,-500.0,0.00034794,2]
[313874058,1707760292878,-500.0,0.00034794,2]
[313874059,1707760292888,-500.0,0.00034794,2]
[313874060,1707760292899,-500.0,0.00034794,2]
[313874061,1707760292909,-500.0,0.00034794,2]
[313874062,1707760292919,-500.0,0.00034794,2]
[313874063,1707760292930,-500.0,0.00034794,2]
[313874064,1707760292940,-500.0,0.00034794,2]
[313874065,1707760292951,-500.0,0.00034794,2]
[313874066,1707760292961,-500.0,0.00034794,2]
[313874067,1707760292972,-500.0,0.00034794,2]
[313874068,1707760292982,-500.0,0.00034794,2]
[313874069,1707760292992,-500.0,0.00034794,2]
[313874070,1707760293002,-500.0,0.00034794,2]
[313874071,1707760293012,-500.0,0.00034794,2]
[313874072,1707760293023,-500.0,0.00034794,2]
[313874073,1707760293032,-500.0,0.00034794,2]
[313874074,1707760293042,-500.0,0.00034794,2]
[313874075,1707760293053,-500.0,0.00034794,2]
[313874076,1707760293063,-500.0,0.00034794,2]
[313874077,1707760293073,-500.0,0.00034794,2]
[313874078,1707760293083,-500.0,0.00034794,2]
[313874079,1707760293093,-500.0,0.00034794,2]
[313874080,1707760293104,-500.0,0.00034794,2]
[313874081,1707760293115,-270.76146943,0.00034794,2]
[313874082,1707760293125,-500.0,0.00034794,2]
[313874083,1707760293136,-500.0,0.00034794,2]
[313874084,1707760293146,-500.0,0.00034794,2]
[313874085,1707760293157,-500.0,0.00034794,2]
[313874086,1707760293167,-500.0,0.00034794,2]
[313874087,1707760293178,-500.0,0.00034794,2]
[313874088,1707760293188,-500.0,0.00034794,2]
[313874089,1707760293199,-500.0,0.00034794,2]
[313874090,1707760293210,-183.08483089,0.00034794,2]
[313874091,1707760293221,-500.0,0.00034794,2]
[313874092,1707760293231,-500.0,0.00034794,2]
[313874093,1707760293241,-500.0,0.00034794,2]
[313874094,1707760293256,-500.0,0.00034794,2]
[313874095,1707760293266,-500.0,0.00034794,2]
[313874096,1707760293277,-500.0,0.00034794,2]
[313874097,1707760293287,-500.0,0.00034794,2]
[313874098,1707760293297,-500.0,0.00034794,2]
[313874099,1707760293307,-500.0,0.00034794,2]
[313874100,1707760293317,-150.0,0.00034794,2]
[313874101,1707760293326,-500.0,0.00034794,2]
[313874102,1707760293337,-500.0,0.00034794,2]
[313874103,1707760293348,-500.0,0.00034794,2]
[313874104,1707760293360,-500.0,0.00034794,2]
[313874105,1707760293370,-500.0,0.00034794,2]
[313874106,1707760293380,-500.0,0.00034794,2]
[313874107,1707760293390,-500.0,0.00034794,2]
[313874108,1707760293400,-500.0,0.00034794,2]
[313874109,1707760293411,-500.0,0.00034794,2]
[313874110,1707760293421,-500.0,0.00034794,2]
[313874111,1707760293432,-500.0,0.00034794,2]
[313874112,1707760293442,-500.0,0.00034794,2]
[313874113,1707760293453,-500.0,0.00034794,2]
[313874114,1707760293464,-500.0,0.00034794,2]
[313874115,1707760293474,-500.0,0.00034794,2]
[313874116,1707760293484,-500.0,0.00034794,2]
[313874117,1707760293494,-500.0,0.00034794,2]
[313874118,1707760293504,-500.0,0.00034794,2]
[313874119,1707760293514,-500.0,0.00034794,2]
[313874120,1707760293524,-500.0,0.00034794,2]
[313874121,1707760293535,-500.0,0.00034794,2]
[313874122,1707760293545,-340.0106824,0.00034794,2]
[313874123,1707760293556,-500.0,0.00034794,2]
[313874124,1707760293566,-500.0,0.00034794,2]
[313874125,1707760293576,-500.0,0.00034794,2]
[313874126,1707760293588,-500.0,0.00034794,2]
[313874127,1707760293598,-500.0,0.00034794,2]
[313874128,1707760293610,-500.0,0.00034794,2]
[313874129,1707760293620,-500.0,0.00034794,2]
[313874130,1707760293630,-500.0,0.00034794,2]
[313874131,1707760293641,-403.82128639,0.00034794,2]
[313874132,1707760293651,-500.0,0.00034794,2]
[313874133,1707760293662,-500.0,0.00034794,2]
[313874134,1707760293672,-500.0,0.00034794,2]
[313874135,1707760293683,-500.0,0.00034794,2]
[313874136,1707760293693,-500.0,0.00034794,2]
[313874137,1707760293703,-500.0,0.00034794,2]
[313874138,1707760293714,-500.0,0.00034794,2]
[313874139,1707760293724,-500.0,0.00034794,2]
[313874140,1707760293734,-500.0,0.00034794,2]
[313874141,1707760293744,-500.0,0.00034794,2]
[313874142,1707760293755,-500.0,0.00034794,2]
[313874143,1707760293765,-500.0,0.00034794,2]
[313874144,1707760293776,-500.0,0.00034794,2]
[313874145,1707760293787,-1001.6,0.00034794,2]
[313874146,1707760293797,-500.0,0.00034794,2]
[313874147,1707760293808,-500.0,0.00034794,2]
[313874148,1707760293818,-564.74889292,0.00034794,2]
[313874149,1707760293830,-500.0,0.00034794,2]
[313874150,1707760293840,-500.0,0.00034794,2]
[313874151,1707760293852,-500.0,0.00034794,2]
[313874152,1707760293863,-500.0,0.00034794,2]
[313874153,1707760293873,-790.71,0.00034794,2]
[313874154,1707760293883,-500.0,0.00034794,2]
[313874155,1707760293892,-500.0,0.00034794,2]
[313874156,1707760293902,-500.0,0.00034794,2]
[313874157,1707760293912,-926.25,0.00034794,2]
[313874158,1707760293923,-500.0,0.00034794,2]
[313874159,1707760293933,-500.0,0.00034794,2]
[313874160,1707760293942,-500.0,0.00034794,2]
[313874161,1707760293952,-752.99,0.00034794,2]
[313874162,1707760293961,-500.0,0.00034794,2]
[313874163,1707760293972,-500.0,0.00034794,2]
[313874164,1707760293982,-500.0,0.00034794,2]
[313874165,1707760293993,-500.0,0.00034794,2]
[313874166,1707760294004,-500.0,0.00034794,2]
[313874167,1707760294015,-500.0,0.00034794,2]
[313874168,1707760294026,-500.0,0.00034794,2]
[313874169,1707760294036,-500.0,0.00034794,2]
[313874170,1707760294046,-500.0,0.00034794,2]
[313874171,1707760294057,-500.0,0.00034794,2]
[313874172,1707760294067,-500.0,0.00034794,2]
[313874173,1707760294078,-500.0,0.00034794,2]
[313874174,1707760294088,-728.08,0.00034794,2]
[313874175,1707760294099,-500.0,0.00034794,2]
[313874176,1707760294111,-500.0,0.00034794,2]
[313874177,1707760294122,-500.0,0.00034794,2]
[313874178,1707760294132,-500.0,0.00034794,2]
[313874179,1707760294142,-2034.84,0.00034794,2]
[313874180,1707760294153,-500.0,0.00034794,2]
[313874181,1707760294163,-1052.09,0.00034794,2]
[313874182,1707760294173,-873.33,0.00034794,2]
[313874183,1707760294184,-500.0,0.00034794,2]
[313874184,1707760294194,-500.0,0.00034794,2]
[313874185,1707760294204,-500.0,0.00034794,2]
[313874186,1707760294215,-2243.29,0.00034794,2]
[313874187,1707760294225,-500.0,0.00034794,2]
[313874188,1707760294236,-2674.74,0.00034794,2]
[313874189,1707760294246,-837.81,0.00034794,2]
[313874190,1707760294256,-472.37176925,0.00034794,2]
[313874191,1707760294266,-500.0,0.00034794,2]
[313874192,1707760294277,-560.04,0.00034794,2]
[313874193,1707760294287,-551.47422817,0.00034794,2]
[313874194,1707760294297,-500.0,0.00034794,2]
[313874195,1707760294314,-454.1887034,0.00034794,2]
[313874196,1707760294325,-500.0,0.00034794,2]
[313874197,1707760294335,-500.0,0.00034794,2]
[313874198,1707760294345,-500.0,0.00034794,2]
[313874199,1707760294356,-500.0,0.00034794,2]
[313874200,1707760294366,-500.0,0.00034794,2]
[313874201,1707760294375,-500.0,0.00034794,2]
[313874202,1707760294385,-500.0,0.00034794,2]
[313874203,1707760294396,-163.2412911,0.00034794,2]
[313874204,1707760294406,-500.0,0.00034794,2]
[313874205,1707760294416,-500.0,0.00034794,2]
[313874206,1707760294427,-500.0,0.00034794,2]
[313874207,1707760294438,-500.0,0.00034794,2]
[313874208,1707760294448,-864.18,0.00034794,2]
[313874209,1707760294458,-500.0,0.00034794,2]
[313874210,1707760294468,-500.0,0.00034794,2]
[313874211,1707760294478,-500.0,0.00034794,2]
[313874212,1707760294488,-563.92730529,0.00034794,2]
[313874213,1707760294499,-500.0,0.00034794,2]
[313874214,1707760294509,-500.0,0.00034794,2]
[313874215,1707760294520,-507.6,0.00034794,2]
[313874216,1707760294530,-500.0,0.00034794,2]
[313874217,1707760294541,-500.0,0.00034794,2]
[313874218,1707760294551,-500.0,0.00034794,2]
[313874219,1707760294561,-2387.49,0.00034794,2]
[313874220,1707760294572,-500.0,0.00034794,2]
[313874221,1707760294582,-2561.57,0.00034794,2]
[313874222,1707760294592,-500.0,0.00034794,2]
[313874223,1707760294602,-612.78,0.00034794,2]
[313874224,1707760294613,-500.0,0.00034794,2]
[313874225,1707760294623,-500.0,0.00034794,2]
[313874226,1707760294633,-500.0,0.00034794,2]
[313874227,1707760294643,-1058.0,0.00034794,2]
[313874228,1707760294654,-1662.29,0.00034794,2]
[313874229,1707760294664,-500.0,0.00034794,2]
[313874230,1707760294674,-288.41989151,0.00034794,2]
[313874231,1707760294684,-500.0,0.00034794,2]
[313874232,1707760294695,-730.56,0.00034794,2]
[313874233,1707760294705,-500.0,0.00034794,2]
[313874234,1707760294715,-677.66,0.00034794,2]
[313874235,1707760294725,-500.0,0.00034794,2]
[313874236,1707760294736,-500.0,0.00034794,2]
[313874237,1707760294746,-500.0,0.00034794,2]
[313874238,1707760294756,-500.0,0.00034794,2]
[313874239,1707760294767,-1074.71,0.00034794,2]
[313874240,1707760294777,-500.0,0.00034794,2]
[313874241,1707760294787,-542.86,0.00034794,2]
[313874242,1707760294797,-500.0,0.00034794,2]
[313874243,1707760294807,-652.51,0.00034794,2]
[313874244,1707760294817,-500.0,0.00034794,2]
[313874245,1707760294830,-500.0,0.00034794,2]
[313874246,1707760294841,-830.65,0.00034794,2]
[313874247,1707760294851,-500.0,0.00034794,2]
[313874248,1707760294862,-500.0,0.00034794,2]
[313874249,1707760294873,-903.79,0.00034794,2]
[313874250,1707760294883,-500.0,0.00034794,2]
[313874251,1707760294893,-500.0,0.00034794,2]
[313874252,1707760294903,-500.0,0.00034794,2]
[313874253,1707760294914,-2048.89,0.00034794,2]
[313874254,1707760294925,-410.07853559,0.00034794,2]
[313874255,1707760294936,-500.0,0.00034794,2]
[313874256,1707760294946,-500.0,0.00034794,2]
[313874257,1707760294957,-500.0,0.00034794,2]
[313874258,1707760294967,-500.0,0.00034794,2]
[313874259,1707760294977,-500.0,0.00034794,2]
[313874260,1707760294988,-258.26,0.00034794,2]
[313874261,1707760294998,-500.0,0.00034794,2]
[313874262,1707760295008,-500.0,0.00034794,2]
[313874263,1707760295019,-500.0,0.00034794,2]
[313874264,1707760295030,-500.0,0.00034794,2]
[313874265,1707760295040,-1086.73,0.00034794,2]
[313874266,1707760295050,-500.0,0.00034794,2]
[313874267,1707760295061,-500.0,0.00034794,2]
[313874268,1707760295071,-500.0,0.00034794,2]
[313874269,1707760295082,-500.0,0.00034794,2]
[313874270,1707760295092,-514.35,0.00034794,2]
[313874271,1707760295103,-500.0,0.00034794,2]
[313874272,1707760295115,-3655.65,0.00034794,2]
[313874273,1707760295125,-3543.43,0.00034794,2]
[313874274,1707760295135,-500.0,0.00034794,2]
[313874275,1707760295146,-500.0,0.00034794,2]
[313874276,1707760295156,-2529.45,0.00034794,2]
[313874277,1707760295166,-500.0,0.00034794,2]
[313874278,1707760295176,-500.0,0.00034794,2]
[313874279,1707760295186,-1054.83,0.00034794,2]
[313874280,1707760295196,-500.0,0.00034794,2]
[313874281,1707760295210,-500.0,0.00034794,2]
[313874282,1707760295221,-500.0,0.00034794,2]
[313874283,1707760295232,-517.77,0.00034794,2]
[313874284,1707760295242,-500.0,0.00034794,2]
[313874285,1707760295253,-729.74,0.00034794,2]
[313874286,1707760295263,-500.0,0.00034794,2]
[313874287,1707760295275,-500.0,0.00034794,2]
[313874288,1707760295285,-500.0,0.00034794,2]
[313874289,1707760295296,-500.0,0.00034794,2]
[313874290,1707760295307,-500.0,0.00034794,2]
[313874291,1707760295318,-500.0,0.00034794,2]
[313874292,1707760295329,-500.0,0.00034794,2]
[313874293,1707760295340,-1043.82,0.00034794,2]
[313874294,1707760295350,-500.0,0.00034794,2]
[313874295,1707760295361,-2625.26,0.00034794,2]
[313874296,1707760295372,-500.0,0.00034794,2]
[313874297,1707760295382,-500.0,0.00034794,2]
[313874298,1707760295391,-500.0,0.00034794,2]
[313874299,1707760295401,-500.0,0.00034794,2]
[313874300,1707760295411,-500.0,0.00034794,2]
[313874301,1707760295421,-500.0,0.00034794,2]
[313874302,1707760295431,-821.05,0.00034794,2]
[313874303,1707760295441,-500.0,0.00034794,2]
[313874304,1707760295452,-500.0,0.00034794,2]
[313874305,1707760295462,-1123.83,0.00034794,2]
[313874306,1707760295475,-500.0,0.00034794,2]
[313874307,1707760295487,-500.0,0.00034794,2]
[313874308,1707760295498,-500.0,0.00034794,2]
[313874309,1707760295509,-500.0,0.00034794,2]
[313874310,1707760295520,-500.0,0.00034794,2]
[313874311,1707760295531,-500.0,0.00034794,2]
[313874312,1707760295541,-500.0,0.00034794,2]
[313874313,1707760295553,-714.02,0.00034794,2]
[313874314,1707760295564,-500.0,0.00034794,2]
[313874315,1707760295576,-500.0,0.00034794,2]
[313874316,1707760295588,-7555.16,0.00034794,2]
[313874317,1707760295599,-522.97,0.00034794,2]
[313874318,1707760295612,-2529.54,0.00034794,2]
[313874319,1707760295623,-500.0,0.00034794,2]
[313874320,1707760295633,-500.0,0.00034794,2]
[313874321,1707760295643,-559.33,0.00034794,2]
[313874322,1707760295654,-500.0,0.00034794,2]
[313874323,1707760295664,-1553.88,0.00034794,2]
[313874324,1707760295674,-500.0,0.00034794,2]
[313874325,1707760295685,-500.0,0.00034794,2]
[313874326,1707760295695,-500.0,0.00034794,2]
[313874327,1707760295706,-172.98712959,0.00034794,2]
[313874328,1707760295716,-500.0,0.00034794,2]
[313874329,1707760295726,-500.0,0.00034794,2]
[313874330,1707760295737,-500.0,0.00034794,2]
[313874331,1707760295748,-255.0,0.00034795,2]
[313874332,1707760295759,-825.20859,0.000348,2]
[313874333,1707760295770,-152.0,0.0003488,4]
[313874334,1707760295780,-150.0,0.00034895,2]
[313874335,1707760295792,-299.06,0.00034896,2]
[313874336,1707760295803,-9018.0041854,0.000349,4]
[313874337,1707760295814,-3018.05989707,0.000349,2]
[313874338,1707760295824,-3018.05989697,0.000349,2]
[313874339,1707760295835,-3018.05989697,0.000349,2]
[313874340,1707760295847,-3018.05989697,0.000349,2]
[313874341,1707760295860,-154.0,0.00034912,2]
[313874342,1707760295873,-478.0,0.00034912,2]
[313874343,1707760295882,-6146.467905,0.00034931,2]
[313874344,1707760295893,-34685.784062,0.00034931,2]
[313874345,1707760295903,-404.85,0.00034932,2]
[313874346,1707760295913,-402.9,0.00034932,2]
[313874347,1707760295924,-404.6,0.00034938,2]
[313874348,1707760295935,-1827.78,0.00034938,2]
[313874349,1707760295947,-150.0,0.00034975,2]
[313874350,1707760295957,-98228.99556036,0.00034976,2]
[313874351,1707760295982,-4028.40458605,0.00034976,2]
[313874352,1707760295994,-828.53976897,0.00034976,2]
[313874353,1707760296007,-298.05724846,0.00034976,2]
[313874354,1707760296020,-5226.40866298,0.00034976,2]
[313874355,1707760296036,-5019.6,0.00034976,2]
[313874356,1707760296054,-1568.18,0.0003452,2]
[313874357,1707760296064,-1082.21642541,0.00034976,2]
[313874358,1707760301801,-6226.50697185,0.00034976,2]
[313874359,1707760301813,-5836.95167488,0.00034976,2]
[313874360,1707760301831,-80446.34569964,0.00034976,2]
[313874361,1707760301841,-50000.0,0.00035,5]
[313874362,1707760301851,-391.18935678,0.00035,4]
[313874363,1707760301861,-451.06831332,0.00035,4]
[313874364,1707760301872,-15850.56192056,0.00035,7]
[313874365,1707760301881,-1205.66273897,0.00035,2]
[313874366,1707760301891,-715.64067924,0.00035,4]
[313874367,1707760301901,-1268.63861743,0.00035,4]
[313874368,1707760301911,-155.0,0.00035,2]
[313874369,1707760301921,-1110.52801494,0.00035,14]
[313874370,1707760301930,-1100.27812,0.00035,2]
[313874371,1707760301940,-1500.0,0.00035,3]
[313874372,1707760301950,-300.0,0.00035,36]
[313874373,1707760301960,-156.411887,0.00035,7]
[313874374,1707760301970,-151.0,0.00035,7]
[313874375,1707760301979,-4910.26219774,0.00035,2]
[313874376,1707760301990,-153.9,0.00035,2]
[313874377,1707760302000,-153.9,0.00035,2]
[313874378,1707760302010,-310.28,0.00035,2]
[313874379,1707760302020,-199.34569187,0.00035,2]
[313874380,1707760302030,-255.0,0.00035,2]
[313874381,1707760302040,-2103.01372668,0.00035,3]
[313874382,1707760302050,-5422.32600459,0.00035036,7]
[313874383,1707760302059,-4479.2820849,0.00035044,2]
[313874384,1707760302069,-14404.5046809,0.00035044,2]
[313874385,1707760302079,-7683.084882,0.00035068,2]
[313874386,1707760302089,-6200.99351844,0.00035068,2]
[313874387,1707760302102,-419.84997922,0.00035068,2]
[313874388,1707760302115,-2133.57886684,0.00035068,2]
[313874389,1707760302127,-1999.72451456,0.00035068,2]
[313874390,1707760304635,-2360.07207094,0.000228,2]
[313874391,1707760306182,-19098.25929049,0.00022799,2]
[313874392,1707760367400,358.99498772,0.00021649,2]
[313874404,1707760448740,250.0,0.0002187,2]
[313874405,1707760449650,44.61556328,0.00021649,2]
[313874406,1707760449688,112.93573455,0.00021649,2]
[313874407,1707760450730,652.25493337,0.00012,30]
[313874408,1707760452490,361.65945006,0.00021649,2]
[313874410,1707760461505,162.21767949,0.00020508,2]
[313874411,1707760463336,1500.0,0.00021934,7]
[313874412,1707760463448,266.51746723,0.00022,2]
[313874413,1707760463636,861.01914996,0.00021649,2]
[313874414,1707760464439,623.3393929,0.00021876,2]
[313874417,1707760477621,698.51007935,0.00021649,2]
[313874418,1707760483517,164.75386382,0.00020396,2]
[313874419,1707760487633,157.55129783,0.00021649,2]
[313874424,1707760509328,155.44142013,0.00020396,2]
[313874426,1707760523638,157.55129783,0.00021649,2]
[313874427,1707760524623,1199.49514891,0.00021649,2]
[313874428,1707760536602,280.0,0.00021778,2]
[313874430,1707760539645,157.55129783,0.00021649,2]
[313874431,1707760545171,100.28618681,0.00020286,2]
[313874432,1707760545196,905.5796045,0.00020286,2]
[313874433,1707760555669,249.04188117,0.00021649,2]
[313874434,1707760555725,4304.20798103,0.00021918,2]
[313874435,1707760555748,5458.8294667,0.00021918,2]
[313874436,1707760555771,236.96255227,0.00021918,2]
[313874437,1707760562108,200.0,0.00021686,2]
[313874438,1707760562816,200.0,0.00027108,120]
[313874439,1707760563172,250.0,0.00021918,2]
[313874440,1707760603581,299.99,0.00022421,7]
[313874441,1707760616514,733.92,0.00021617,2]
[313874442,1707760621968,245.912508,0.00022295,2]
[313874443,1707760631121,166.86,0.00022236,2]
[313874444,1707760637405,155.59789016,0.00022307,2]
[313874445,1707760641080,192.51,0.00021572,2]
[313874446,1707760644611,1479.12,0.00021761,2]
[313874447,1707760651873,225.6,0.00021583,2]
[313874448,1707760665150,150.0,0.00022,2]
[313874449,1707760666145,200.0,0.00021605,2]
[313874450,1707760668939,1222.34651627,0.00022312,2]
[313874451,1707760668965,2952.11415736,0.00022312,2]
[313874452,1707760675546,2506.71530934,0.00021615,2]
[313874453,1707760675571,5458.8294667,0.00021615,2]
[313874454,1707760675598,5458.8294667,0.00021615,2]
[313874455,1707760675623,5458.8294667,0.00021615,2]
[313874456,1707760675650,5016.79629056,0.00021615,2]
[313874457,1707760689366,200.0,0.00021618,2]
[313874458,1707760697329,165.93,0.00021653,2]
[313874459,1707760733008,150.0,0.00022,2]
[313874460,1707760735072,1046.94308784,0.0002239,2]
[313874462,1707760740528,280.83602721,0.0002239,2]
[313874463,1707760742885,155.0,0.0002239,2]
[313874464,1707760743233,5473.18204554,0.0002239,2]
[313874465,1707760744398,654.90751796,0.0002239,2]
[313874466,1707760746185,504.10893426,0.0002239,2]
[313874467,1707760747986,563.5398554,0.0002239,2]
[313874468,1707760748922,315.93907995,0.0002239,2]
[313874469,1707760751226,164.96,0.00021639,2]
[313874470,1707760751394,155.0,0.0002239,2]
[313874471,1707760755635,155.0,0.00021653,2]
[313874472,1707760756078,155.0,0.0002239,2]
[313874473,1707760756703,155.0,0.0002239,2]
[313874474,1707760758437,19098.25929049,0.0002239,2]
[313874475,1707760759357,527.94521451,0.0002239,2]
[313874476,1707760760327,155.0,0.0002239,2]
[313874477,1707760760680,165.37301497,0.0002239,2]
[313874478,1707760761604,7825.94599968,0.0002239,2]
[313874479,1707760761786,10583.11023493,0.0002239,2]
[313874481,1707760763566,358.54724897,0.0002239,2]
[313874482,1707760764248,203.77776113,0.0002239,2]
[313874483,1707760764564,3347.25710792,0.0002239,2]
[313874484,1707760766787,209.02509211,0.0002239,2]
[313874485,1707760767702,411.27142875,0.0001993,2]
[313874486,1707760768705,6473.53214918,0.0002239,2]
[313874487,1707760768736,545.87787865,0.00022389,2]
[313874488,1707760769392,3696.99413812,0.0002239,4]
[313874489,1707760770770,155.0,0.0002239,2]
[313874490,1707760771140,402.75303572,0.0002239,2]
[313874491,1707760771635,155.0,0.00021653,2]
[313874492,1707760772539,2722.42,0.00021679,2]
[313874493,1707760773110,155.0,0.0002239,2]
[313874494,1707760774055,475.81552691,0.0002239,2]
[313874495,1707760776019,311.79750185,0.0002239,2]
[313874496,1707760776793,303.8135645,0.0002239,2]
[313874497,1707760777089,514.60659493,0.0002239,2]
[313874498,1707760779338,4650.94335151,0.0002239,2]
[313874499,1707760779911,7144.72832791,0.0002239,5]
[313874500,1707760780325,2319.15296568,0.0002239,2]
[313874501,1707760780700,226.42390402,0.000222,2]
[313874502,1707760783361,1262.8216172,0.0002239,2]
[313874503,1707760784010,221.60779423,0.0002239,2]
[313874504,1707760785302,29605.0,0.00022342,2]
[313874505,1707760785947,223.58,0.00021721,2]
[313874506,1707760788284,526.65608122,0.0002239,2]
[313874507,1707760791653,165.62503683,0.00021653,2]
[313874508,1707760791958,161.87,0.0002187,2]
[313874509,1707760792253,161.87,0.0002193,2]
[313874510,1707760792472,161.87,0.0002199,2]
[313874511,1707760792726,161.87,0.00022049,2]
[313874512,1707760792965,161.87,0.00022109,2]
[313874513,1707760793183,161.87,0.00022169,2]
[313874514,1707760793606,161.87,0.00022229,2]
[313874515,1707760793841,161.87,0.00022289,2]
[313874516,1707760794064,161.87,0.00022349,2]
[313874517,1707760801580,24113.88,0.00021619,2]
[313874518,1707760802719,150.0,0.0002239,2]
[313874519,1707760803132,171.3,0.00017296,2]
[313874520,1707760816923,654.90751796,0.0002239,2]
[313874521,1707760829868,527.94521451,0.0002239,2]
[313874522,1707760836913,6473.53214918,0.0002239,2]
[313874523,1707760837879,155.0,0.0002239,2]
[313874524,1707760841102,3347.25710792,0.0002239,2]
[313874525,1707760843736,534.81337932,0.0002239,2]
[313874526,1707760845025,545.87787865,0.0002239,2]
[313874527,1707760846059,258.48,0.00022,2]
[313874528,1707760846946,150.0,0.00021661,2]
[313874529,1707760847150,514.51,0.00022137,2]
[313874530,1707760850298,2874.1767,0.00022298,2]
[313874531,1707760850570,475.81552691,0.0002239,2]
[313874532,1707760852940,289.85,0.00019744,2]
[313874533,1707760853200,302.90916764,0.0002239,2]
[313874534,1707760853388,289.85,0.00022008,2]
[313874536,1707760856408,162.65328233,0.0002239,2]
[313874537,1707760856906,2319.15296568,0.0002239,2]
[313874538,1707760857318,514.60659493,0.0002239,2]
[313874539,1707760858339,155.0,0.0002239,2]